Cogmind - Beta 10.2 @@@ ROGUE MODE // 2020.10.29 @ 21:02:44 // Halloween2020/ForbiddenLore Player: Stryker Result: Destroyed by 8R-AWN with 8R-AWN's Boregun Performance ------------- Evolutions (0) 0 Regions Visited (3) 600 Robots Destroyed (41) 205 Value Destroyed (771) 771 Prototype IDs (2) 40 Alien Tech Used (0) 0 Bonus (0) 0 TOTAL SCORE: 1616 Bonus ------- None Cogmind --------- Core Integrity 0/250 Matter 239/300 Energy 250/250 System Corruption 2% Temperature Cool (10) Movement Treading (200) Ox2 Location -10/Exiles Parts ------- > --- POWER (1) -------- Ion Engine > --- PROPULSION (2) --- Light Treads Light Treads > --- UTILITY (2) ------ Humpback > --- WEAPON (2) ------- Minigun High-powered Shotgun > --- INVENTORY (24) --- Light Treads Wheel Wheel Wheel Wheel Wheel Large Storage Unit High-capacity Storage Unit Humpback Humpback Humpback Large Battery (300) High-capacity Matter Pod (200) Advanced Signal Interpreter Beam Cannon Beam Cannon EMP Blaster EMP Blaster Rocket Launcher Peak State ------------ > --- POWER ------------ Improved Ion Engine > --- PROPULSION ------- Light Treads Light Treads > --- UTILITY ---------- Humpback > --- WEAPON ----------- Bore Cannon EMP Blaster > --- INVENTORY -------- Ion Engine Light Treads Wheel Wheel Wheel Wheel Wheel Large Storage Unit Large Storage Unit Large Storage Unit Large Storage Unit High-capacity Storage Unit Humpback Large Battery High-capacity Matter Pod Advanced Signal Interpreter Beam Cannon Beam Cannon Minigun High-powered Shotgun EMP Blaster Rocket Launcher [Rating: 16] Favorites ----------- Power Improved Ion Engine Engine Improved Ion Engine Propulsion Light Treads Treads Light Treads Leg Aluminum Leg Wheel Compact Wheel Utility Large Storage Unit Storage Large Storage Unit Weapon EMP Blaster Energy Gun Medium Laser Energy Cannon Beam Cannon Ballistic Gun Light Assault Rifle Ballistic Cannon Bore Cannon Launcher EMP Blaster Build | -11 -10 -10 -10 ------- Run | Scr Mat Min Exi Slots Evolved . | . . . . Power . | . . . . Propulsion . | . . . . Utility . | . . . . Weapon . | . . . . Parts Attached 28 | 4 12 8 4 Power 3 | . 1 1 1 Engine 3 | . 1 1 1 Core . | . . . . Reactor . | . . . . Propulsion 7 | 2 2 3 . Treads 5 | 1 1 3 . Leg . | . . . . Wheel 2 | 1 1 . . Hover . | . . . . Flight . | . . . . Utility 5 | 1 3 . 1 Device . | . . . . Storage 5 | 1 3 . 1 Processor . | . . . . Hackware . | . . . . Protection . | . . . . Artifact . | . . . . Weapon 13 | 1 6 4 2 Energy Gun 2 | . 2 . . Energy Cannon 2 | . 1 1 . Ballistic Gun 4 | 1 1 . 2 Ballistic Cannon 1 | . . 1 . Launcher 4 | . 2 2 . Special Weapon . | . . . . Impact Weapon . | . . . . Slashing Weapon . | . . . . Piercing Weapon . | . . . . Special Melee Weapon . | . . . . Unidentified Prototypes . | . . . . Parts Lost 9 | . 3 4 2 Power 2 | . . 1 1 Propulsion 3 | . 1 2 . Utility . | . . . . Weapon 4 | . 2 1 1 Highest Loss Streak 2 | . 2 2 2 Average Slot Usage (%) 92 | . 100 96 86 Engine 13 | . 14 10 14 Treads 23 | . 15 26 28 Wheel 4 | . 12 1 . Storage 21 | . 28 28 15 Energy Gun 2 | . 9 . . Ballistic Gun 5 | . 14 6 . Ballistic Cannon 9 | . . 11 13 Launcher 9 | . 3 9 13 Naked Turns . | . . . . Heaviest Build 100 | 14 59 68 100 Greatest Support 40 | 20 40 40 40 Greatest Overweight (x) 5 | . 5 5 2 Average Overweight (x) 1 | . 2 1 1 Largest Inventory Capacity 24 | 8 18 18 24 Average Capacity 19 | 7 16 18 23 Most Carried 24 | 8 18 18 24 Average Carried 17 | 6 14 16 21 Final Capacity 24 | 8 18 18 24 Final Carried 22 | 8 18 17 22 Class Distribution -------------------- 56% | Mutant 43% | Hauler-Mutant Dominant Class ---------------- Mutant | -10/Materials Mutant | -10/Mines Hauler-Mutant | -10/Exiles Resources | -11 -10 -10 -10 ----------- Run | Scr Mat Min Exi Matter Collected 1047 | 276 487 181 103 Remotely . | . . . . Salvage Created 1144 | 108 699 230 107 Parts 62 | 7 42 13 . Haulers Intercepted 2 | . 2 . . Recyclers Shooed 1 | . 1 . . Parts Field Recycled . | . . . . Retrieved Matter . | . . . . Parts Self-Destructed . | . . . . Prevented . | . . . . Kills | -11 -10 -10 -10 ------- Run | Scr Mat Min Exi Combat Hostiles Destroyed 32 | . 16 10 6 Melee 1 | . 1 . . Guns 11 | . 8 1 2 Cannons 3 | . . 3 . AOE 17 | . 7 6 4 Classes Destroyed 9 | 3 4 2 . Worker 4 | 1 1 2 . Builder 1 | . 1 . . Tunneler 1 | 1 . . . Hauler 2 | . 2 . . Recycler 1 | 1 . . . Swarmer 6 | . 3 3 . Grunt 15 | . 13 2 . Demolisher 2 | . . 2 . Assembled 9 | . . 3 6 Best Kill Streak 6 | 1 3 4 6 Combat Bots Only 6 | . 3 3 6 Max Kills in Single Turn 2 | 1 2 2 2 Gunslinging . | . . . . Exploded 2 | . 1 2 2 Melee 1 | . 1 . . Uniques/NPCs Destroyed . | . . . . Combat | -11 -10 -10 -10 -------- Run | Scr Mat Min Exi Damage Taken 1627 | . 655 610 362 Core 251 | . 114 82 55 Absorbed by Shields . | . . . . Core Remaining (%) 100 | 100 . . . Volleys Fired 123 | 12 65 25 21 Largest 2 | 2 2 2 2 Hottest 90 | 70 80 90 57 Shots Fired 208 | 24 114 42 28 Gun 148 | 24 93 14 17 Cannon 28 | . 4 20 4 Launcher 32 | . 17 8 7 Special . | . . . . Kinetic 108 | 12 51 24 21 Thermal 68 | 12 46 10 . Explosive . | . . . . Electromagnetic 32 | . 17 8 7 Robot Hit Streak 22 | 7 22 6 6 Robot Miss Streak 3 | 3 3 3 3 Penetration Max . | . . . . Secondary Targets 1 | . 1 . . Max Gunslinging Chain 1 | . 1 . . Shots Hit Robots 119 | 13 67 23 16 Core Hits 76 | 5 37 19 15 Critical Hits 4 | . . 3 1 Critical Kills 2 | . . 2 . Critical Parts Destroyed 2 | . . 1 1 Melee Attacks . | . . . . Impact . | . . . . Slashing . | . . . . Piercing . | . . . . Sneak Attacks . | . . . . Combat Hostiles . | . . . . Follow-up Attacks . | . . . . Damage Inflicted 2118 | 135 1054 500 429 Guns 933 | 135 570 51 177 Cannons 180 | . 34 121 25 Explosions 1004 | . 449 328 227 Melee . | . . . . Ramming 1 | . 1 . . Kinetic 547 | 47 195 103 202 Thermal 660 | 88 459 113 . Explosive . | . . . . Electromagnetic 910 | . 399 284 227 Impact . | . . . . Slashing . | . . . . Piercing . | . . . . Highest Corruption 2 | . 1 1 2 Average Corruption 1 | . 1 1 1 Corruption Purged . | . . . . Effects 16 | . 1 1 14 Message Errors 9 | . 1 1 7 Energy Discharges 2 | . . . 2 Data Loss (minor) 2 | . . . 2 Targeting Errors 3 | . . . 3 Overload Shots . | . . . . Overflow Damage 18 | . 1 5 12 Projectiles . | . . . . Explosions 18 | . 1 5 12 Melee . | . . . . Knockbacks 2 | . . 1 1 Impact . | . . . . Kinetic 2 | . . 1 1 Secondary . | . . . . Self-Inflicted Damage 88 | . 37 2 49 Shots 8 | . 4 1 3 Rammed 2 | . 2 . . Targets Rammed 3 | . 3 . . Kicked . | . . . . Crushed 1 | . 1 . . Highest Temperature 290 | 100 290 219 36 Average Temperature 67 | 38 77 76 13 Received Heat Transfer 375 | . 306 69 . Effects 1 | . 1 . . Energy Bleed 1 | . 1 . . Siege Activations . | . . . . Robots Corrupted . | . . . . Combat Hostiles . | . . . . Parts Fried 1 | . . 1 . Impact Corruptions . | . . . . Robots Melted . | . . . . Combat Hostiles . | . . . . Parts Melted 3 | 1 2 . . Heat Transferred 1791 | 259 1284 248 . Parts Sabotaged . | . . . . Parts Stolen . | . . . . Parts Stripped . | . . . . Power Chain Reactions 6 | . 4 2 . Missiles Intercepted . | . . . . Alert | -11 -10 -10 -10 ------- Run | Scr Mat Min Exi Peak Influence 225 | 15 225 160 . Initial 30 | . 9 30 . Average 81 | 6 79 96 . Maximum Alert Level 1 | . 1 . . Low Security (%) 97 | 100 95 100 . Level 1 2 | . 4 . . Level 2 . | . . . . Level 3 . | . . . . Level 4 . | . . . . Level 5 . | . . . . High Security . | . . . . Max Security . | . . . . Squads Dispatched 4 | . 4 . . Investigation 2 | . 2 . . Extermination . | . . . . Reinforcement 2 | . 2 . . Assault . | . . . . Garrison . | . . . . Intercept . | . . . . Construction Impeded . | . . . . Haulers Reinforced . | . . . . Stealth | -11 -10 -10 -10 --------- Run | Scr Mat Min Exi Distress Signals 3 | . 3 . . Communications Jammed . | . . . . Distress Signals . | . . . . Times Spotted 56 | . 29 11 16 Peak Tracking Total 19 | . 5 3 19 Tactical Retreats 7 | . 2 1 4 Traps | -11 -10 -10 -10 ------- Run | Scr Mat Min Exi Traps Triggered 4 | . 3 1 . Indirectly . | . . . . Trap Hack Attempts . | . . . . Triggered . | . . . . Disarmed . | . . . . Reprogrammed . | . . . . Reused . | . . . . Traps Extracted . | . . . . Installed . | . . . . Triggered . | . . . . Machines | -11 -10 -10 -10 ---------- Run | Scr Mat Min Exi Machines Disabled 7 | . . 3 4 Max in Single Turn 3 | . . 3 2 Machines Sabotaged . | . . . . Garrisons Compromised . | . . . . Overloaded Fab Kills . | . . . . Fab Network Shutdowns . | . . . . Hacking | -11 -10 -10 -10 --------- Run | Scr Mat Min Exi Machines Accessed 8 | . 5 1 2 Terminals 5 | . 5 . . Fabricators . | . . . . Repair Stations . | . . . . Recycling Units . | . . . . Scanalyzers . | . . . . Garrison Access . | . . . . Total Hacks 49 | . 16 1 32 Successful 41 | . 8 1 32 Failed 8 | . 8 . . Catastrophic 1 | . 1 . . Database Lockouts . | . . . . Manual 9 | . 9 . . Terminals 16 | . 16 . . Fabricators . | . . . . Repair Stations . | . . . . Recycling Units . | . . . . Scanalyzers . | . . . . Garrison Access . | . . . . Terminal Hacks 36 | . 3 1 32 Record 32 | . . . 32 Part Schematic 1 | . 1 . . Prototype ID Bank 1 | . 1 . . Open Door 1 | . . 1 . Unreport Threat 1 | . 1 . . Fabricator Hacks . | . . . . Repair Station Hacks . | . . . . Recycling Unit Hacks . | . . . . Scanalyzer . | . . . . Garrison Access Hacks . | . . . . Unauthorized Hacks 5 | . 5 . . Terminals 5 | . 5 . . Track 2 | . 2 . . Botnet 3 | . 3 . . Fabricators . | . . . . Repair Stations . | . . . . Recycling Units . | . . . . Scanalyzers . | . . . . Garrison Access . | . . . . Data Cores Recovered . | . . . . Used . | . . . . Hacking Detections 5 | . 5 . . Full Trace Events 1 | . 1 . . Feedback Events . | . . . . Feedback Blocked . | . . . . Robot Schematics Acquired . | . . . . Robots Built . | . . . . Matter . | . . . . Time . | . . . . Total Robot Build Rating . | . . . . Part Schematics Acquired 1 | . 1 . . Parts Built . | . . . . Matter . | . . . . Time . | . . . . Total Part Build Rating . | . . . . Parts Repaired . | . . . . Time . | . . . . Parts Recycled . | . . . . Recycled Matter . | . . . . Retrieved Matter . | . . . . Retrieved Components . | . . . . Parts Scanalyzed . | . . . . Part Schematics Acquired . | . . . . Parts Damaged . | . . . . Bothacking | -11 -10 -10 -10 ------------ Run | Scr Mat Min Exi Used RIF Installer . | . . . . Robots Hacked . | . . . . Non-combat . | . . . . Combat . | . . . . Robot Hacks Applied . | . . . . Relay Couplers Released . | . . . . Robots Rewired . | . . . . Allies Hacked . | . . . . Hacks Repelled . | . . . . Allies | -11 -10 -10 -10 -------- Run | Scr Mat Min Exi Total Allies 2 | . . 2 . Largest Group 2 | . . 2 2 Highest-Rated Group 53 | . . 53 53 Highest-Rated Ally 31 | . . 31 31 Total Orders . | . . . . Ally Attacks . | . . . . Total Damage . | . . . . Kills . | . . . . Allies Corrupted . | . . . . Allies Melted . | . . . . Intel | -11 -10 -10 -10 ------- Run | Scr Mat Min Exi Robot Analysis Total . | . . . . Derelict Logs Recovered 1 | . . 1 . Drone Launches . | . . . . Drone Recoveries . | . . . . Exploration | -11 -10 -10 -10 ------------- Run | Scr Mat Min Exi Turns Passed 3417 | 116 957 725 1619 Spaces Moved 1746 | 64 539 360 783 Core . | . . . . Treads 1124 | . 27 314 783 Legs 36 | 36 . . . Wheels 586 | 28 512 46 . Hover . | . . . . Flight . | . . . . Fastest Speed 100 | 100 100 130 160 Average Speed 166 | 111 123 173 197 Slowest Speed 200 | 120 180 200 200 Overloaded Moves . | . . . . Propulsion Burnouts . | . . . . Robots Hopped . | . . . . Cave-ins Triggered . | . . . . Exploration Rate (%) 61 | 5 73 77 90 Regions Visited 3 Branch Regions 2 Pre-discovered Areas 3 | . . 2 1 Known Exits Taken . | . . . . Unknown Exits Taken 3 | 1 1 1 . Scrap Searched 3 | . . 3 . Spaces Dug 6 | . 6 . . Terrain Destroyed 32 | . 17 15 . Melee . | . . . . Projectile 9 | . . 9 . AOE 23 | . 17 6 . Terrain Rammed . | . . . . Walls Destroyed . | . . . . Machines Disabled . | . . . . Actions | -11 -10 -10 -10 --------- Run | Scr Mat Min Exi Total 2070 | 87 729 421 833 Wait 95 | 1 74 20 . Move 1743 | 63 538 359 783 Hop . | . . . . Pick Up 52 | 4 22 6 20 Fast Attach 3 | 1 1 . 1 Attach 11 | 2 3 4 2 Detach 1 | 1 . . . Swap 14 | 1 8 4 1 Drop 25 | 2 15 3 5 Fire 123 | 12 65 25 21 Melee . | . . . . Ram . | . . . . Kick . | . . . . Crush 3 | . 3 . . Escape Stasis . | . . . . Rewire . | . . . . Trap . | . . . . Miscellaneous . | . . . . Route ------- -11/Scrapyard -10/Materials (discovered 4 exits: [*Mat x3] / *Min) -10/Mines (discovered 2 exits: [*Mat] / *Exi) -10/Exiles (discovered 1 exit: [*Min]) History --------- Turn | Location | Event 3 | -11/Scrapyard | Discovered new exit (range 3) 117 | -11/Scrapyard | Entered Materials 315 | -10/Materials | Build established: Mutant 392 | -10/Materials | Discovered new exit (range 16) 599 | -10/Materials | Discovered new exit (range 8) 745 | -10/Materials | Discovered new exit (range 8) 1007 | -10/Materials | Discovered new exit (range 5) 1074 | -10/Materials | Entered Mines 1101 | -10/Mines | Assembled infested the area 1106 | -10/Mines | Assisted by a Guerilla fighting off Assembled 1168 | -10/Mines | Core integrity fell below 50% 1505 | -10/Mines | Discovered new exit (range 10) 1520 | -10/Mines | Met a Derelict who couldn't figure out how to use a Trap Extractor 1662 | -10/Mines | Learned location of Storage (-7) 1771 | -10/Mines | Deemed a non-threat by the Exiles lab entrance 1773 | -10/Mines | Discovered new exit (range 5) 1799 | -10/Mines | Entered Exiles 1799 | -10/Exiles | Accompanied by 2 allies 1829 | -10/Exiles | Led the pair of lost Derelicts to a safe place 1841 | -10/Exiles | Met 8R-AWN 1882 | -10/Exiles | Met EX-HEX 2130 | -10/Exiles | Met EX-BIN 2192 | -10/Exiles | Met EX-DEC 2200 | -10/Exiles | Learned location of Zion (-6) 2247 | -10/Exiles | Build established: Hauler-Mutant 2303 | -10/Exiles | Visited The Gauntlet 2920 | -10/Exiles | Discovered new exit (range 14) 3325 | -10/Exiles | Attacked by the Exiles 3358 | -10/Exiles | Core integrity fell below 20% 3418 | -10/Exiles | Destroyed by 8R-AWN with 8R-AWN's Boregun Last Messages --------------- 03362_ as-64651 destroyed. 03364_ Imp. Ion Engine destroyed. 03365_ as-00457 destroyed. 03365_ as-34277 destroyed. 03365_ Bore Cannon destroyed. 03365_ Destroyed Bore Cannon. 03380_ as-22196 destroyed. 03386_ System corrupted: Hpw. Shotgun targeting data glitched. 03389_ as-75243 destroyed. 03394_ Acquired 12 matter. 03396_ Acquired 20 matter. 03408_ Acquired 11 matter. 03416_ System corrupted: Hpw. Shotgun targeting data glitched. 03416_ Penetrated by HV Slug. 03416_ HV Slug penetrates Wall. 03416_ HV Slug penetrates Testing Apparatus. 03416_ Testing Apparatus damaged. 03418_ Penetrated by HV Slug. 03418_ HV Slug penetrates Wall. 03418_ Penetrated by HV Slug. Map ----- +----------------------------------------------------+ | ???????#" " "" """ | | ???????#"""" ""## ##""" " " ""#" | | ???????#"" ""#### ######""" """##"" | | ???????#" """"##??# #????###""""##### | | ???????#""" """#??## ####???######???? | | ???????## ""##??# "!#????????????? | | ????????#"" """##???#" !#????????????? | | ????????##""" ##????#" "#????????????? | | ?????????##"""" ##?????# ""!"#????????????? | | ??????????### #??????########????????????? | | ????????????##### ##??????????????????????????? | | ????????????????## #???????????????????????????? | | ?????????????????# #???????????????????????????? | | ?????????????????# #???????????????????????????? | | ?????????????????# #???????????????????????????? | | ?????????????????# #???????????????????????????? | | ""?????"""""?????# #???????????????????????????? | | """????""""""????# #???????????????????????????? | | " "????" """"???# #???????????????????????????? | | """????"" """???# #???????????????????????????? | | ""????"" ""???# #???????????????????????????? | | "########"""###### ##############??????????????? | | """""""" "" g #"""""#??????????????? | | """"""" #"" ""#??????????????? | | c % " ""#??????????????? | | ! @ " "#??????????????? | | = " """#??????????????? | | "" #"" ""#??????????????? | | " """"" " """" " ; """"#??????????????? | | "###""###"""########"""############??????????????? | | ""#""#"" ""????"" ""????????????????????????? | | ""#""#""" ""#???"" """#???????????????????????? | | """"""#" " "#??#"""""""#???????????????????????? | | """????"""""""#???"" """"????????????????????????? | | """????"""""""#????"""""?????????????????????????? | | ?????????####???????##???????????????????????????? | | ?????????????????????????????????????????????????? | | ?????????????????????????????????????????????????? | | ?????????????????????????????????????????????????? | | ?????????????????????????????????????????????????? | | | | | | | | | | | | | | | | | | | | | +----------------------------------------------------+ Best States ------------- Heat Dissipation 25 Energy Generation 12 Energy Capacity 265 Matter Stores 300 Matter Capacity 300 Sight Range 16 Terrain Scan Density 10 Evasion (%) 40 Recoil Reduction 2 Item Schematics ----------------- Hcp. Storage Unit | -10/Materials | Hacked Robot Schematics ------------------ None Fabricated ------------ Nothing Alien Tech Used ----------------- None Achievements -------------- None Challenges ------------ None Game ------ Seed ContainmentShrapnelChip Manual? 0 Play Time 00:32:25 Cumulative 941.5 hours Start 2020.10.29 @ 20:21:59 End 2020.10.29 @ 21:02:44 Sessions 1 Manual Loads 0 Difficulty Rogue Special Mode Halloween2020/ForbiddenLore Game No. 269 Rogue 269 Adventurer 0 Explorer 0 Win Type - Total 32 Types 21/3/5/3/0/0/0/0/0 Lore% 75 Gallery% 86 Achievement% 72 Wizard Run 0 Options --------- ASCII 0 Keyboard 1 Movement Numpad Keybinds 0 Fullscreen 1 Font 24/Smallcaps Map View 76x50 Tactical HUD 1 Map Filters NONE Filters NONE Steam 1 RUN: 4d67de1a-39a9-403b-aed8-a07773b81658